fUSD/lending_fUSD_20250215
["ID","MTS","AMOUNT","RATE_DAILY","PERIOD"]
[353151262,1739611908309,-672.18586621,0.00012849,2]
[353151263,1739611908318,-478.4052759,0.00012849,2]
[353151264,1739611908328,-575.95947928,0.00012849,2]
[353151265,1739611908338,-616.17127063,0.00012849,2]
[353151266,1739611908347,-388.75146555,0.00012849,2]
[353151267,1739611908357,-691.81069748,0.00012849,2]
[353151268,1739611908367,-778.22610734,0.00012849,2]
[353151269,1739611908376,-537.02790594,0.00012849,2]
[353151270,1739611908386,-638.9782208,0.00012849,2]
[353151271,1739611908396,-676.91171698,0.00012849,2]
[353151272,1739611908405,-568.54530417,0.00012849,2]
[353151273,1739611908415,-1057.96820994,0.00012849,2]
[353151274,1739611908424,-1086.72728888,0.00012849,2]
[353151275,1739611908434,-829.20813222,0.00012849,2]
[353151276,1739611908444,-793.35684321,0.00012849,2]
[353151277,1739611908453,-615.34,0.00012849,2]
[353151278,1739611908463,-783.39442681,0.00012849,2]
[353151279,1739611908472,-991.49832091,0.00012849,2]
[353151280,1739611908481,-1433.94787125,0.00012849,2]
[353151281,1739611908491,-971.80064221,0.00012849,2]
[353151282,1739611908501,-789.66129045,0.00012849,2]
[353151283,1739611908511,-552.3,0.00012849,2]
[353151284,1739611908520,-1175.08848212,0.00012849,2]
[353151285,1739611908530,-731.632739,0.00012849,2]
[353151286,1739611908539,-2056.45,0.00012849,2]
[353151287,1739611908549,-529.55366637,0.00012849,2]
[353151288,1739611908559,-895.16290621,0.00012849,2]
[353151289,1739611908568,-717.62117797,0.00012849,2]
[353151290,1739611908577,-611.07588369,0.00012849,2]
[353151291,1739611908587,-1754.41849229,0.00012849,2]
[353151292,1739611908597,-743.92521747,0.00012849,2]
[353151293,1739611908611,-1009.87555833,0.00012849,2]
[353151294,1739611908621,-2982.91024351,0.00012849,2]
[353151295,1739611908630,-995.98421338,0.00012849,2]
[353151296,1739611908639,-1159.35057183,0.00012849,2]
[353151297,1739611908650,-581.51020673,0.00012849,2]
[353151298,1739611908659,-779.9352885,0.00012849,2]
[353151299,1739611908669,-735.92611066,0.00012849,2]
[353151300,1739611908678,-1222.92328118,0.00012849,2]
[353151301,1739611908687,-1141.70107003,0.00012849,2]
[353151302,1739611908698,-921.61222081,0.00012849,2]
[353151303,1739611908707,-657.58948545,0.00012849,2]
[353151304,1739611908716,-802.97755615,0.00012849,2]
[353151305,1739611908726,-560.3185135,0.00012849,2]
[353151306,1739611908735,-646.87337469,0.00012849,2]
[353151307,1739611908744,-1756.96861168,0.00012849,2]
[353151308,1739611908753,-2263.36029088,0.00012849,2]
[353151309,1739611908763,-630.6482826,0.00012849,2]
[353151310,1739611908772,-645.69185028,0.00012849,2]
[353151311,1739611908783,-904.94984101,0.00012849,2]
[353151312,1739611908793,-864.45484331,0.00012849,2]
[353151313,1739611908802,-830.79375954,0.00012849,2]
[353151314,1739611908811,-769.27204023,0.00012849,2]
[353151315,1739611908822,-897.51623995,0.00012849,2]
[353151316,1739611908832,-1012.01152238,0.00012849,2]
[353151317,1739611908843,-1292.97521785,0.00012849,2]
[353151318,1739611908852,-194.8839029,0.00012849,2]
[353151319,1739611908862,-1639.21755768,0.00012849,2]
[353151320,1739611908872,-695.63639054,0.00012849,2]
[353151321,1739611908882,-747.02322588,0.00012849,2]
[353151322,1739611908891,-850.65980414,0.00012849,2]
[353151323,1739611908901,-734.99110711,0.00012849,2]
[353151324,1739611908911,-1135.09005353,0.00012849,2]
[353151325,1739611908921,-834.95867528,0.00012849,2]
[353151326,1739611908931,-505.28817544,0.00012849,2]
[353151327,1739611908941,-824.13472176,0.00012849,2]
[353151328,1739611908951,-622.66013116,0.00012849,2]
[353151329,1739611908961,-1491.73134976,0.00012849,2]
[353151330,1739611908970,-587.6901952,0.00012849,2]
[353151331,1739611908980,-511.03,0.00012849,2]
[353151332,1739611908990,-1098.77385409,0.00012849,2]
[353151333,1739611908999,-879.31056486,0.00012849,2]
[353151334,1739611909009,-697.69131106,0.00012849,2]
[353151335,1739611909019,-845.93091541,0.00012849,2]
[353151336,1739611909029,-494.55608721,0.00012849,2]
[353151337,1739611909039,-928.04777416,0.00012849,2]
[353151338,1739611909051,-437.20887829,0.00012849,2]
[353151339,1739611909060,-910.19,0.00012849,2]
[353151340,1739611909070,-1188.42514766,0.00012849,2]
[353151341,1739611909079,-677.74067099,0.00012849,2]
[353151342,1739611909088,-1676.50753986,0.00012849,2]
[353151343,1739611909098,-964.70100981,0.00012849,2]
[353151344,1739611909107,-1174.13878382,0.00012849,2]
[353151345,1739611909116,-728.62806587,0.00012849,2]
[353151346,1739611909126,-703.42597772,0.00012849,2]
[353151347,1739611909135,-1086.2728737,0.00012849,2]
[353151348,1739611909145,-1604.79049892,0.00012849,2]
[353151349,1739611909153,-748.19428346,0.00012849,2]
[353151350,1739611909163,-957.11501139,0.00012849,2]
[353151351,1739611909172,-704.01620442,0.00012849,2]
[353151352,1739611909182,-623.35149305,0.00012849,2]
[353151353,1739611909191,-2157.17203764,0.00012849,2]
[353151354,1739611909201,-6004.95,0.00012893,2]
[353151355,1739611909210,-388.72,0.00012893,2]
[353151356,1739611909219,-600.0,0.000129,4]
[353151357,1739611909229,-515.85835662,0.00012903,2]
[353151358,1739611909238,-280.0,0.0001292,2]
[353151359,1739611909247,-202.0,0.0001292,2]
[353151360,1739611909257,-165.11,0.00012943,2]
[353151361,1739611909266,-160470.39662741,0.00013,2]
[353151362,1739611909285,-5855.47999998,0.00013,2]
[353151382,1739612353328,522.37517384,0.0002,120]
[353151388,1739612481553,509.28,8.784e-05,2]
[353151390,1739612763640,-1000.0,0.00020648,120]
[353151391,1739612763667,-608.45136787,0.00020648,120]
[353151392,1739612763694,-151.22249743,0.00020648,120]
[353151393,1739612763720,-154.0,0.00020648,120]
[353151394,1739612763746,-232.39379419,0.00020648,120]
[353151395,1739612763773,-3632.3716413,0.00020648,120]
[353151396,1739612763801,-2499.69475188,0.00020648,120]
[353151397,1739612773998,-1000000.0,0.00020648,40]
[353151398,1739612779211,-1000000.0,0.00020648,40]
[353151399,1739612782939,-1000000.0,0.00020648,40]
[353151400,1739612787557,-10000000.0,0.00020648,40]
[353151401,1739612857457,1005.74959991,0.00020648,120]
[353151407,1739613003145,299.9,0.0002,120]
[353151408,1739613003224,1436.94,0.0002,120]
[353151409,1739613003393,458.45326105,0.00020648,120]
[353151410,1739613017244,2500.0,0.00012794,120]
[353151411,1739613017496,2500.0,0.00012876,120]
[353151412,1739613017754,2500.0,0.00012959,120]
[353151413,1739613017993,2500.0,0.00013041,120]
[353151414,1739613018439,1797.28832569,0.00013123,120]
[353151415,1739613032291,-150.0,0.00010067,2]
[353151416,1739613032301,-507.44,0.00010068,2]
[353151417,1739613032312,-498.84,0.00010068,2]
[353151418,1739613032321,-493.48,0.00010068,2]
[353151419,1739613032330,-493.72,0.00010068,2]
[353151420,1739613032340,-503.36,0.00010068,2]
[353151421,1739613032350,-500.22,0.00010068,2]
[353151422,1739613032359,-502.8,0.00010068,2]
[353151423,1739613032368,-495.84,0.00010068,2]
[353151424,1739613032378,-508.72,0.00010068,2]
[353151425,1739613032388,-491.79,0.00010068,2]
[353151426,1739613032397,-508.86,0.00010068,2]
[353151427,1739613032406,-500.0,0.00010068,2]
[353151428,1739613032415,-900.0,0.00010068,2]
[353151429,1739613032425,-900.0,0.00010068,2]
[353151430,1739613032435,-168.002,0.0001007,2]
[353151431,1739613032452,-327.558,0.0001007,2]
[353151432,1739613032461,-67.84199862,0.00010072,2]
[353151483,1739613038173,-440.21800138,0.00010072,2]
[353151484,1739613038183,-493.55,0.00010076,2]
[353151485,1739613038194,-495.73,0.00010085,2]
[353151486,1739613038203,-505.26,0.00010102,2]
[353151487,1739613038212,-505.88,0.00010136,2]
[353151488,1739613038221,-413.93,0.00010137,2]
[353151489,1739613038231,-491.22,0.00010205,2]
[353151490,1739613038241,-718.07579,0.000103,2]
[353151491,1739613038251,-575.46,0.00010626,2]
[353151492,1739613038260,-1000.0,0.00010738,2]
[353151493,1739613038270,-569.0,0.00010755,2]
[353151494,1739613038279,-638.0,0.00010755,2]
[353151495,1739613038288,-150.0,0.00010755,2]
[353151496,1739613038297,-949.057,0.00010755,2]
[353151497,1739613038306,-157.55,0.00010755,2]
[353151498,1739613038316,-552.267,0.00010755,2]
[353151499,1739613038324,-908.94728355,0.00010755,2]
[353151500,1739613038348,-3119.05271645,0.00010755,2]
[353151501,1739613038357,-3916.0,0.00010755,2]
[353151502,1739613038367,-150.0,0.00010755,2]
[353151503,1739613038376,-165.11,0.00010911,2]
[353151504,1739613038386,-507.1675863,0.00010958,2]
[353151505,1739613038395,-472.07611542,0.00010958,2]
[353151506,1739613038404,-559.26,0.00010958,2]
[353151507,1739613038413,-500.0,0.00010958,2]
[353151508,1739613038422,-376.83521265,0.00010958,2]
[353151509,1739613038432,-500.0,0.00010958,2]
[353151510,1739613038442,-500.0,0.00010958,2]
[353151511,1739613038452,-500.0,0.00010958,2]
[353151512,1739613038461,-500.0,0.00010958,2]
[353151513,1739613038470,-500.0,0.00010958,2]
[353151514,1739613038479,-500.0,0.00010958,2]
[353151515,1739613038489,-655.93,0.00010958,2]
[353151516,1739613038498,-676.01,0.00010958,2]
[353151517,1739613038507,-500.0,0.00010958,2]
[353151518,1739613038516,-500.0,0.00010958,2]
[353151519,1739613038525,-150.0,0.00010959,2]
[353151520,1739613038535,-500.0,0.00011041,2]
[353151521,1739613038544,-634.84,0.00011041,2]
[353151522,1739613038553,-500.0,0.00011041,2]
[353151523,1739613038563,-500.0,0.00011041,2]
[353151524,1739613038572,-655.93,0.00011041,2]
[353151525,1739613038581,-676.01,0.00011041,2]
[353151526,1739613038590,-502.19,0.00011041,2]
[353151527,1739613038600,-509.28,0.00011048,2]
[353151528,1739613038610,-500.0,0.00011123,2]
[353151529,1739613038619,-500.0,0.00011123,2]
[353151530,1739613038628,-500.0,0.00011123,2]
[353151531,1739613038639,-655.93,0.00011123,2]
[353151532,1739613038650,-676.01,0.00011123,2]
[353151533,1739613038661,-500.97,0.00011205,2]
[353151534,1739613038672,-500.0,0.00011205,2]
[353151535,1739613038681,-500.0,0.00011205,2]
[353151536,1739613038690,-500.0,0.00011205,2]
[353151537,1739613038699,-655.93,0.00011205,2]
[353151538,1739613038709,-676.01,0.00011205,2]
[353151539,1739613038718,-500.0,0.00011287,2]
[353151540,1739613038727,-500.0,0.00011287,2]
[353151541,1739613038736,-500.0,0.00011287,2]
[353151542,1739613038746,-655.93,0.00011287,2]
[353151543,1739613038755,-676.01,0.00011287,2]
[353151544,1739613038764,-150.0,0.0001133,2]
[353151545,1739613038774,-500.0,0.00011369,2]
[353151546,1739613038783,-500.0,0.00011369,2]
[353151547,1739613038792,-500.0,0.00011369,2]
[353151548,1739613038801,-655.93,0.00011369,2]
[353151549,1739613038810,-676.01,0.00011369,2]
[353151550,1739613038819,-774.73,0.00011383,2]
[353151551,1739613038830,-900.0,0.00011438,2]
[353151552,1739613038840,-900.0,0.00011438,2]
[353151553,1739613038850,-500.0,0.00011452,2]
[353151554,1739613038860,-500.0,0.00011452,2]
[353151555,1739613038869,-500.0,0.00011452,2]
[353151556,1739613038878,-655.93,0.00011452,2]
[353151557,1739613038887,-676.01,0.00011452,2]
[353151558,1739613038896,-321.0,0.000115,2]
[353151559,1739613038905,-232.08802777,0.00011533,2]
[353151560,1739613038917,-3160.01797223,0.00011533,2]
[353151561,1739613038926,-171.396,0.00011533,2]
[353151562,1739613038935,-500.0,0.00011534,2]
[353151563,1739613038944,-500.0,0.00011534,2]
[353151564,1739613038953,-500.0,0.00011534,2]
[353151565,1739613038962,-655.93,0.00011534,2]
[353151566,1739613038971,-676.01,0.00011534,2]
[353151567,1739613038983,-150.21,0.00011541,2]
[353151568,1739613038992,-596.99,0.000116,2]
[353151569,1739613039176,-494.02,0.00011616,2]
[353151570,1739613039187,-361.5835857,0.00011616,2]
[353151571,1739613039357,-138.4164143,0.00011616,2]
[353151572,1739613039366,-638.09909068,0.00011616,2]
[353151573,1739613039376,-500.0,0.00011616,2]
[353151574,1739613039385,-655.93,0.00011616,2]
[353151575,1739613039395,-676.01,0.00011616,2]
[353151576,1739613039404,-500.0,0.00011698,2]
[353151577,1739613039414,-500.0,0.00011698,2]
[353151578,1739613039423,-655.93,0.00011698,2]
[353151579,1739613039432,-676.01,0.00011698,2]
[353151580,1739613039443,-500.0,0.0001178,2]
[353151581,1739613039452,-500.0,0.0001178,2]
[353151582,1739613039461,-655.93,0.0001178,2]
[353151583,1739613039471,-676.01,0.0001178,2]
[353151584,1739613039481,-1203.72502334,0.00011862,2]
[353151585,1739613039490,-227.59229519,0.00011863,2]
[353151586,1739613039523,-272.40770481,0.00011863,2]
[353151587,1739613039532,-500.0,0.00011863,2]
[353151588,1739613039541,-655.93,0.00011863,2]
[353151589,1739613039551,-676.01,0.00011863,2]
[353151590,1739613039561,-500.0,0.00011883,2]
[353151591,1739613039571,-1031.82615164,0.00011883,2]
[353151592,1739613039582,-968.17384836,0.00011883,2]
[353151593,1739613039591,-500.0,0.00011883,2]
[353151594,1739613039601,-200.0,0.00011883,2]
[353151595,1739613039610,-163.63014946,0.00011883,2]
[353151596,1739613039619,-500.0,0.00011945,2]
[353151597,1739613039628,-500.0,0.00011945,2]
[353151598,1739613039638,-655.93,0.00011945,2]
[353151599,1739613039647,-676.01,0.00011945,2]
[353151600,1739613039656,-500.0,0.00012027,2]
[353151601,1739613039664,-500.0,0.00012027,2]
[353151602,1739613039674,-655.93,0.00012027,2]
[353151603,1739613039684,-676.01,0.00012027,2]
[353151604,1739613039693,-1000.0,0.0001208,2]
[353151605,1739613039703,-500.0,0.00012109,2]
[353151606,1739613039712,-500.0,0.00012109,2]
[353151607,1739613039721,-655.93,0.00012109,2]
[353151608,1739613039731,-676.01,0.00012109,2]
[353151609,1739613039741,-500.0,0.00012191,2]
[353151610,1739613039751,-233.90158359,0.00012191,2]
[353151611,1739613039760,-655.93,0.00012191,2]
[353151612,1739613039769,-676.01,0.00012191,2]
[353151613,1739613039779,-500.0,0.00012273,2]
[353151614,1739613039789,-655.93,0.00012273,2]
[353151615,1739613039798,-676.01,0.00012273,2]
[353151616,1739613039807,-500.0,0.00012328,2]
[353151617,1739613039817,-500.0,0.00012328,2]
[353151618,1739613039826,-500.0,0.00012328,2]
[353151619,1739613039835,-500.0,0.00012328,2]
[353151620,1739613039845,-500.0,0.00012328,2]
[353151621,1739613039855,-505.0,0.00012328,2]
[353151622,1739613039865,-503.44,0.00012329,2]
[353151623,1739613039874,-500.0,0.00012356,2]
[353151624,1739613039884,-655.93,0.00012356,2]
[353151625,1739613039894,-676.01,0.00012356,2]
[353151626,1739613039905,-500.0,0.00012438,2]
[353151627,1739613039914,-655.93,0.00012438,2]
[353151628,1739613039924,-676.01,0.00012438,2]
[353151629,1739613039934,-500.0,0.0001252,2]
[353151630,1739613039944,-655.93,0.0001252,2]
[353151631,1739613039954,-676.01,0.0001252,2]
[353151632,1739613039963,-500.0,0.00012574,2]
[353151633,1739613039973,-500.0,0.00012574,2]
[353151634,1739613039986,-500.0,0.00012574,2]
[353151635,1739613039996,-500.0,0.00012574,2]
[353151636,1739613040005,-500.0,0.00012574,2]
[353151637,1739613040015,-500.0,0.00012574,2]
[353151638,1739613040024,-500.0,0.00012574,2]
[353151639,1739613040034,-861.44,0.00012574,2]
[353151640,1739613040043,-500.0,0.00012574,2]
[353151641,1739613040052,-846.77,0.00012574,2]
[353151642,1739613040063,-500.0,0.00012574,2]
[353151643,1739613040073,-500.0,0.00012574,2]
[353151644,1739613040082,-500.0,0.00012574,2]
[353151645,1739613040091,-500.0,0.00012574,2]
[353151646,1739613040100,-500.0,0.00012574,2]
[353151647,1739613040109,-500.0,0.00012574,2]
[353151648,1739613040119,-163.64494094,0.00012594,2]
[353151649,1739613040129,-424.2217361,0.00012602,2]
[353151650,1739613040139,-655.93,0.00012602,2]
[353151651,1739613040149,-676.01,0.00012602,2]
[353151652,1739613040159,-500.0,0.00012656,2]
[353151653,1739613040168,-500.0,0.00012656,2]
[353151654,1739613040178,-500.0,0.00012656,2]
[353151655,1739613040188,-373.35862679,0.00012656,2]
[353151656,1739613040198,-500.0,0.00012656,2]
[353151657,1739613040209,-500.0,0.00012656,2]
[353151658,1739613040218,-861.44,0.00012656,2]
[353151659,1739613040228,-846.77,0.00012656,2]
[353151660,1739613040237,-500.0,0.00012656,2]
[353151661,1739613040246,-155.06092691,0.00012656,2]
[353151662,1739613040255,-500.0,0.00012656,2]
[353151663,1739613040265,-500.0,0.00012656,2]
[353151664,1739613040274,-655.93,0.00012684,2]
[353151665,1739613040283,-676.01,0.00012684,2]
[353151666,1739613040292,-509.28,0.00012684,2]
[353151667,1739613040302,-500.0,0.00012693,2]
[353151668,1739613040312,-500.0,0.00012693,2]
[353151669,1739613040321,-762.41,0.00012693,2]
[353151670,1739613040331,-500.0,0.00012693,2]
[353151671,1739613040341,-500.0,0.00012693,2]
[353151672,1739613040350,-500.0,0.00012693,2]
[353151673,1739613040360,-260.529172,0.00012693,2]
[353151674,1739613040370,-500.0,0.00012693,2]
[353151675,1739613040379,-500.0,0.00012693,2]
[353151676,1739613040389,-500.0,0.00012693,2]
[353151677,1739613040398,-500.0,0.00012693,2]
[353151678,1739613040408,-500.0,0.00012693,2]
[353151679,1739613040417,-563.01,0.00012693,2]
[353151680,1739613040427,-500.0,0.00012693,2]
[353151681,1739613040436,-500.0,0.00012693,2]
[353151682,1739613040446,-500.0,0.00012693,2]
[353151683,1739613040455,-500.0,0.00012693,2]
[353151684,1739613040465,-500.0,0.00012693,2]
[353151685,1739613040474,-500.0,0.00012693,2]
[353151686,1739613040483,-500.0,0.00012693,2]
[353151687,1739613040493,-500.0,0.00012693,2]
[353151688,1739613040502,-500.0,0.00012693,2]
[353151689,1739613040511,-500.0,0.00012693,2]
[353151690,1739613040520,-500.0,0.00012693,2]
[353151691,1739613040530,-500.0,0.00012693,2]
[353151692,1739613040539,-500.0,0.00012693,2]
[353151693,1739613040548,-500.0,0.00012693,2]
[353151694,1739613040558,-500.0,0.00012693,2]
[353151695,1739613040567,-500.0,0.00012693,2]
[353151696,1739613040577,-500.0,0.00012693,2]
[353151697,1739613040590,-500.0,0.00012693,2]
[353151698,1739613040599,-500.0,0.00012693,2]
[353151699,1739613040608,-500.0,0.00012693,2]
[353151700,1739613040618,-644.97,0.00012693,2]
[353151701,1739613040628,-500.0,0.00012693,2]
[353151702,1739613040637,-1000.0,0.00012694,2]
[353151703,1739613040647,-1000.0,0.00012694,2]
[353151704,1739613040657,-1000.0,0.00012694,2]
[353151705,1739613040667,-1000.0,0.00012694,2]
[353151706,1739613040677,-1000.0,0.00012694,2]
[353151707,1739613040687,-1000.0,0.00012694,2]
[353151708,1739613040696,-1000.0,0.00012694,2]
[353151709,1739613040705,-1000.0,0.00012694,2]
[353151710,1739613040714,-1000.0,0.00012694,2]
[353151711,1739613040724,-1000.0,0.00012694,2]
[353151712,1739613040734,-432.08438454,0.00012722,2]
[353151713,1739613040743,-1308.6522802,0.00012739,2]
[353151714,1739613040753,-500.0,0.00012739,2]
[353151715,1739613040763,-500.0,0.00012739,2]
[353151716,1739613040772,-500.0,0.00012739,2]
[353151717,1739613040781,-500.0,0.00012739,2]
[353151718,1739613040791,-500.0,0.00012739,2]
[353151719,1739613040801,-861.44,0.00012739,2]
[353151720,1739613040810,-846.77,0.00012739,2]
[353151721,1739613040820,-500.0,0.00012739,2]
[353151722,1739613040829,-500.0,0.00012739,2]
[353151723,1739613040839,-237.99,0.00012739,2]
[353151724,1739613040848,-150.0,0.00012763,2]
[353151725,1739613040858,-150.0,0.00012765,2]
[353151726,1739613040868,-655.93,0.00012767,2]
[353151727,1739613040878,-676.01,0.00012767,2]
[353151728,1739613040887,-500.0,0.00012774,2]
[353151729,1739613040896,-500.0,0.00012774,2]
[353151730,1739613040905,-702.08,0.00012774,2]
[353151731,1739613040915,-500.0,0.00012774,2]
[353151732,1739613040924,-500.0,0.00012774,2]
[353151733,1739613040934,-500.0,0.00012774,2]
[353151734,1739613040944,-500.0,0.00012774,2]
[353151735,1739613040954,-543.45,0.00012774,2]
[353151736,1739613040964,-500.0,0.00012774,2]
[353151737,1739613040974,-500.0,0.00012774,2]
[353151738,1739613040987,-500.0,0.00012774,2]
[353151739,1739613040996,-500.0,0.00012774,2]
[353151740,1739613041005,-500.0,0.00012774,2]
[353151741,1739613041015,-500.0,0.00012774,2]
[353151742,1739613041025,-1069.14,0.00012774,2]
[353151743,1739613041035,-500.0,0.00012774,2]
[353151744,1739613041044,-500.0,0.00012774,2]
[353151745,1739613041055,-500.0,0.00012774,2]
[353151746,1739613041065,-500.0,0.00012774,2]
[353151747,1739613041074,-268.079629,0.00012774,2]
[353151748,1739613041083,-500.0,0.00012774,2]
[353151749,1739613041093,-160.450785,0.00012774,2]
[353151750,1739613041101,-500.0,0.00012774,2]
[353151751,1739613041111,-500.0,0.00012774,2]
[353151752,1739613041120,-500.0,0.00012774,2]
[353151753,1739613041129,-500.0,0.00012774,2]
[353151754,1739613041138,-500.0,0.00012775,2]
[353151755,1739613041148,-500.0,0.00012775,2]
[353151756,1739613041157,-762.41,0.00012775,2]
[353151757,1739613041167,-500.0,0.00012775,2]
[353151758,1739613041177,-500.0,0.00012775,2]
[353151759,1739613041186,-260.529172,0.00012775,2]
[353151760,1739613041195,-500.0,0.00012775,2]
[353151761,1739613041205,-500.0,0.00012775,2]
[353151762,1739613041216,-500.0,0.00012775,2]
[353151763,1739613041225,-500.0,0.00012775,2]
[353151764,1739613041235,-500.0,0.00012775,2]
[353151765,1739613041244,-500.0,0.00012775,2]
[353151766,1739613041254,-500.0,0.00012775,2]
[353151767,1739613041264,-500.0,0.00012775,2]
[353151768,1739613041273,-500.0,0.00012775,2]
[353151769,1739613041283,-500.0,0.00012775,2]
[353151770,1739613041292,-500.0,0.00012775,2]
[353151771,1739613041301,-500.0,0.00012775,2]
[353151772,1739613041311,-500.0,0.00012775,2]
[353151773,1739613041320,-500.0,0.00012775,2]
[353151774,1739613041330,-500.0,0.00012775,2]
[353151775,1739613041340,-500.0,0.00012775,2]
[353151776,1739613041350,-500.0,0.00012775,2]
[353151777,1739613041359,-500.0,0.00012775,2]
[353151778,1739613041368,-500.0,0.00012775,2]
[353151779,1739613041379,-500.0,0.00012775,2]
[353151780,1739613041388,-500.0,0.00012775,2]
[353151781,1739613041397,-500.0,0.00012775,2]
[353151782,1739613041406,-166.84,0.00012775,2]
[353151783,1739613041416,-217.93320116,0.00012776,2]
[353151784,1739613041425,-150.0,0.00012778,2]
[353151785,1739613041435,-150.0,0.00012781,2]
[353151786,1739613041444,-500.0,0.00012793,2]
[353151787,1739613041454,-500.0,0.00012793,2]
[353151788,1739613041463,-500.0,0.00012793,2]
[353151789,1739613041472,-500.0,0.00012793,2]
[353151790,1739613041481,-500.0,0.00012793,2]
[353151791,1739613041491,-500.0,0.00012793,2]
[353151792,1739613041500,-500.0,0.00012793,2]
[353151793,1739613041510,-500.0,0.00012793,2]
[353151794,1739613041519,-500.0,0.00012793,2]
[353151795,1739613041530,-500.0,0.00012793,2]
[353151796,1739613041540,-500.0,0.00012793,2]
[353151797,1739613041550,-500.0,0.00012793,2]
[353151798,1739613041560,-500.0,0.00012793,2]
[353151799,1739613041569,-500.0,0.00012793,2]
[353151800,1739613041579,-500.0,0.00012793,2]
[353151801,1739613041588,-500.0,0.00012793,2]
[353151802,1739613041597,-500.0,0.00012793,2]
[353151803,1739613041607,-500.0,0.00012793,2]
[353151804,1739613041616,-842.0,0.00012793,2]
[353151805,1739613041627,-500.0,0.00012793,2]
[353151806,1739613041636,-500.0,0.00012793,2]
[353151807,1739613041646,-500.0,0.00012793,2]
[353151808,1739613041656,-500.0,0.00012794,2]
[353151809,1739613041665,-500.0,0.00012794,2]
[353151810,1739613041675,-500.0,0.00012794,2]
[353151811,1739613041684,-205.76268518,0.00012794,2]
[353151812,1739613041694,-500.0,0.00012794,2]
[353151813,1739613041703,-595.98482865,0.00012794,2]
[353151814,1739613041712,-500.0,0.00012794,2]
[353151815,1739613041721,-500.0,0.00012794,2]
[353151816,1739613041731,-500.0,0.00012794,2]
[353151817,1739613041741,-500.0,0.00012794,2]
[353151818,1739613041751,-500.0,0.00012794,2]
[353151819,1739613041760,-500.0,0.00012794,2]
[353151820,1739613041769,-500.0,0.00012794,2]
[353151821,1739613041779,-500.0,0.00012794,2]
[353151822,1739613041788,-500.0,0.00012794,2]
[353151823,1739613041797,-500.0,0.00012794,2]
[353151824,1739613041806,-500.0,0.00012794,2]
[353151825,1739613041815,-500.0,0.00012794,2]
[353151826,1739613041824,-503.12081949,0.00012794,2]
[353151827,1739613041834,-500.0,0.00012794,2]
[353151828,1739613041843,-500.0,0.00012794,2]
[353151829,1739613041852,-500.0,0.00012794,2]
[353151830,1739613041862,-500.0,0.00012794,2]
[353151831,1739613041871,-500.0,0.00012794,2]
[353151832,1739613041880,-500.0,0.00012794,2]
[353151833,1739613041889,-500.0,0.00012794,2]
[353151834,1739613041899,-500.0,0.00012794,2]
[353151835,1739613041908,-500.0,0.00012794,2]
[353151836,1739613041917,-500.0,0.00012794,2]
[353151837,1739613041927,-544.88,0.00012794,2]
[353151838,1739613041938,-500.0,0.00012794,2]
[353151839,1739613041947,-500.0,0.00012794,2]
[353151840,1739613041957,-502.53226677,0.00012794,2]
[353151841,1739613041967,-500.0,0.00012794,2]